bitfinex/quotes_BTCUSD_20251029
["timestamp","ask_amount","ask_price","bid_price","bid_amount"]
[1761745201418,0.002,113190.0,113180.0,1.08067499]
[1761745202473,0.002,113190.0,113180.0,0.37383302]
[1761745202687,0.17676496,113200.0,113180.0,0.33665074]
[1761745202899,0.2165063,113200.0,113190.0,0.02428]
[1761745203126,0.2165063,113200.0,113190.0,0.23460405]
[1761745203590,0.2401463,113200.0,113190.0,0.02428]
[1761745204060,0.17676496,113200.0,113190.0,0.05791]
[1761745204289,0.17676496,113200.0,113190.0,0.02428]
[1761745204509,0.20040496,113200.0,113190.0,0.02428]
[1761745204736,0.17676496,113200.0,113190.0,0.05791]
[1761745205003,0.20340496,113200.0,113190.0,0.02528]
[1761745205219,0.20340496,113200.0,113190.0,0.02428]
[1761745205220,0.58281133,113200.0,113190.0,0.02428]
[1761745205428,0.58281133,113200.0,113180.0,0.01221207]
[1761745205429,0.50081405,113190.0,113180.0,0.01221207]
[1761745205654,1.14382651,113190.0,113180.0,0.01221207]
[1761745205890,1.14382651,113190.0,113180.0,0.01321207]
[1761745206118,1.34245608,113190.0,113180.0,0.01321207]
[1761745206349,4.3424556,113190.0,113180.0,0.01221207]
[1761745206763,3.77076314,113190.0,113180.0,0.01221207]
[1761745206985,4.32346453,113190.0,113180.0,0.01221207]
[1761745207196,4.3424561,113190.0,113180.0,0.01221207]
[1761745207423,4.31305011,113190.0,113180.0,0.01221207]
[1761745208328,0.17670966,113180.0,113170.0,0.0004]
[1761745208562,4.18226014,113180.0,113170.0,0.0004]
[1761745208841,4.20124982,113180.0,113170.0,0.0004]
[1761745209273,4.54124982,113180.0,113170.0,0.0004]
[1761745209668,3.84682835,113180.0,113170.0,0.0004]
[1761745209885,4.20153113,113180.0,113170.0,0.0014]
[1761745210101,0.62983867,113180.0,113170.0,0.0014]
[1761745210322,1.20153113,113180.0,113170.0,0.0014]
[1761745210541,0.62983867,113180.0,113170.0,0.0014]
[1761745210985,0.17870966,113180.0,113170.0,0.0741]
[1761745211439,0.17670966,113180.0,113170.0,0.0731]
[1761745211669,0.29024526,113180.0,113170.0,0.0004]
[1761745211896,0.29424526,113180.0,113170.0,0.0014]
[1761745212124,0.17670966,113180.0,113170.0,0.07482]
[1761745212375,0.17670966,113180.0,113170.0,0.2692178]
[1761745212622,0.17770966,113180.0,113170.0,0.25354528]
[1761745213133,0.17770966,113180.0,113170.0,0.07682]
[1761745213397,0.17670966,113180.0,113170.0,0.07482]
[1761745213622,0.17670966,113180.0,113170.0,0.2692178]
[1761745213848,0.52559888,113200.0,113170.0,0.25154528]
[1761745214121,0.52559888,113200.0,113190.0,0.04113]
[1761745214122,0.27541789,113200.0,113190.0,0.04113]
[1761745214350,0.18559888,113200.0,113190.0,0.04113]
[1761745215598,0.18559888,113200.0,113190.0,0.07442]
[1761745215803,0.18659888,113200.0,113190.0,0.07742]
[1761745216717,0.18559888,113200.0,113190.0,0.26878345]
[1761745216926,0.18559888,113200.0,113190.0,0.25611405]
[1761745217143,0.17876345,113200.0,113190.0,0.25611405]
[1761745217354,0.17876345,113200.0,113190.0,0.82780651]
[1761745217576,0.00208501,113200.0,113190.0,0.91762552]
[1761745217916,0.17876345,113200.0,113190.0,0.91762552]
[1761745218127,0.17876345,113200.0,113190.0,0.34593306]
[1761745220386,0.00208501,113200.0,113190.0,0.34593306]
[1761745220662,0.17876345,113200.0,113190.0,0.34593306]
[1761745220880,0.23892979,113200.0,113190.0,0.04613]
[1761745221744,0.23892979,113200.0,113190.0,0.005]
[1761745221960,0.27463979,113200.0,113190.0,0.005]
[1761745222174,0.84633225,113200.0,113190.0,0.005]
[1761745222843,0.93615126,113200.0,113190.0,0.005]
[1761745223056,4.72335126,113200.0,113190.0,0.005]
[1761745223263,4.74233602,113200.0,113190.0,0.005]
[1761745224149,4.13421722,113200.0,113190.0,0.005]
[1761745224355,0.80868821,113200.0,113190.0,0.02811]
[1761745224557,0.84439821,113200.0,113190.0,0.005]
[1761745224763,4.41609067,113200.0,113190.0,0.005]
[1761745225185,4.50590968,113200.0,113190.0,0.005]
[1761745225412,4.79572869,113200.0,113190.0,0.005]
[1761745227011,4.79672869,113200.0,113190.0,0.005]
[1761745227423,0.17670966,113180.0,113170.0,0.00061211]
[1761745227620,0.20044966,113180.0,113170.0,0.00061211]
[1761745229396,0.20044966,113180.0,113170.0,0.04174211]
[1761745229620,0.20044966,113180.0,113170.0,0.00061211]
[1761745229621,0.63026867,113180.0,113170.0,0.00061211]
[1761745229831,1.23967113,113180.0,113170.0,0.00361211]
[1761745230285,0.63226867,113180.0,113170.0,0.00361211]
[1761745230511,0.51870966,113180.0,113170.0,0.07803211]
[1761745230870,0.54244966,113180.0,113170.0,0.04474211]
[1761745231069,0.54244966,113180.0,113170.0,0.02163211]
[1761745231462,0.54244966,113180.0,113170.0,0.00361211]
[1761745231714,0.63226867,113180.0,113170.0,0.02672211]
[1761745231848,0.63226867,113180.0,113170.0,0.04474211]
[1761745232054,0.54244966,113180.0,113170.0,0.04474211]
[1761745232279,0.54244966,113180.0,113170.0,0.02163211]
[1761745232476,0.54244966,113180.0,113170.0,0.04474211]
[1761745233085,0.17870966,113180.0,113170.0,0.25475739]
[1761745233308,0.002,113180.0,113170.0,0.25475739]
[1761745234047,0.17870966,113180.0,113170.0,0.25475739]
[1761745235244,0.21425143,113180.0,113170.0,0.07803211]
[1761745235561,0.21425143,113180.0,113170.0,0.00361211]
[1761745235562,0.23799143,113180.0,113170.0,0.00361211]
[1761745235925,0.84539389,113180.0,113170.0,0.00361211]
[1761745236325,4.19441279,113180.0,113170.0,0.00361211]
[1761745237306,4.2842318,113180.0,113170.0,0.00361211]
[1761745237664,4.30320859,113180.0,113170.0,0.00361211]
[1761745239464,4.55040859,113180.0,113170.0,0.00361211]
[1761745240109,4.51486682,113180.0,113170.0,0.00361211]
[1761745240565,4.8161291,113180.0,113170.0,0.00361211]
[1761745240783,4.07030093,113180.0,113170.0,2.12543515]
[1761745241001,4.09677063,113180.0,113170.0,0.95120843]
[1761745241215,4.21034434,113180.0,113170.0,0.80262876]
[1761745241424,4.20134435,113180.0,113170.0,0.78066769]
[1761745241646,4.40134435,113180.0,113170.0,0.54631732]
[1761745241860,4.97303681,113180.0,113170.0,0.54631732]
[1761745242294,4.94928211,113180.0,113170.0,0.07483773]
[1761745242515,4.68445269,113180.0,113170.0,1e-08]
[1761745242728,4.88245269,113180.0,113170.0,1e-08]
[1761745242958,4.88345269,113180.0,113170.0,1e-08]
[1761745243386,4.86598298,113180.0,113170.0,1e-08]
[1761745243595,4.85774811,113180.0,113170.0,1e-08]
[1761745243804,3.82405436,113180.0,113170.0,1e-08]
[1761745244013,4.37177003,113180.0,113170.0,1e-08]
[1761745244227,4.71277003,113180.0,113170.0,1e-08]
[1761745244439,4.7347072,113180.0,113170.0,1e-08]
[1761745244644,4.82352621,113180.0,113170.0,1e-08]
[1761745246032,4.82052621,113180.0,113170.0,1e-08]
[1761745246224,4.82252621,113180.0,113170.0,1e-08]
[1761745246700,4.84909645,113180.0,113170.0,1e-08]
[1761745248378,4.85731717,113180.0,113170.0,1e-08]
[1761745248884,4.89349945,113180.0,113170.0,1e-08]
[1761745249127,4.90994003,113180.0,113170.0,1e-08]
[1761745249355,4.93810379,113180.0,113170.0,1e-08]
[1761745250413,4.90994164,113180.0,113170.0,1e-08]
[1761745250635,4.67375936,113180.0,113170.0,1e-08]
[1761745250886,4.82160878,113180.0,113170.0,1e-08]
[1761745251095,4.78681621,113180.0,113170.0,1e-08]
[1761745251305,4.79504425,113180.0,113170.0,1e-08]
[1761745251923,4.8114993,113180.0,113170.0,1e-08]
[1761745252172,4.835254,113180.0,113170.0,1e-08]
[1761745252390,4.89958338,113180.0,113170.0,1e-08]
[1761745252597,4.94416888,113180.0,113170.0,1e-08]
[1761745253017,4.9175016,113180.0,113170.0,1e-08]
[1761745253476,4.965011,113180.0,113170.0,1e-08]
[1761745253679,4.95301101,113180.0,113170.0,1e-08]
[1761745254094,4.969011,113180.0,113170.0,1e-08]
[1761745254305,4.13380915,113180.0,113170.0,1e-08]
[1761745254555,4.75135322,113180.0,113170.0,1e-08]
[1761745254808,4.7503709,113180.0,113170.0,1e-08]
[1761745255024,4.7443709,113180.0,113170.0,1e-08]
[1761745255449,4.78204383,113180.0,113170.0,1e-08]
[1761745256080,4.7503709,113180.0,113170.0,1e-08]
[1761745256290,4.83918991,113180.0,113170.0,1e-08]
[1761745256706,4.83418991,113180.0,113170.0,1e-08]
[1761745256913,4.49418991,113180.0,113170.0,1e-08]
[1761745257130,4.81773486,113180.0,113170.0,1e-08]
[1761745257341,4.81873486,113180.0,113170.0,1e-08]
[1761745257523,4.79504425,113180.0,113170.0,1e-08]
[1761745259384,4.82723486,113180.0,113170.0,1e-08]
[1761745260270,4.73741585,113180.0,113170.0,1e-08]
[1761745260480,4.73741585,113180.0,113170.0,0.03899001]
[1761745260481,0.85221377,113180.0,113170.0,0.03899001]
[1761745260695,0.48024573,113180.0,113170.0,0.03899001]
[1761745260895,0.48024573,113180.0,113170.0,0.01690001]
[1761745261098,1.05193819,113180.0,113170.0,1e-08]
[1761745261312,4.77157621,113180.0,113170.0,1e-08]
[1761745261597,3.99988375,113180.0,113170.0,1e-08]
[1761745261788,4.57157621,113180.0,113170.0,1e-08]
[1761745262343,4.56957621,113180.0,113170.0,1e-08]
[1761745263154,0.62601717,113180.0,113170.0,0.07414001]
[1761745263357,0.26708,113180.0,113170.0,0.64583247]
[1761745263563,0.44378966,113180.0,113170.0,0.25086529]
[1761745263788,0.26708,113180.0,113170.0,0.25086529]
[1761745263991,0.26708,113180.0,113170.0,0.91237676]
[1761745264430,0.26708,113180.0,113170.0,0.94855904]
[1761745265053,0.26508,113180.0,113170.0,0.94855904]
[1761745265462,0.26708,113180.0,113170.0,0.94855904]
[1761745265877,0.26708,113180.0,113170.0,0.37686658]
[1761745266085,0.26708,113180.0,113170.0,0.94855904]
[1761745266496,0.26708,113180.0,113170.0,0.94955904]
[1761745267560,0.26708,113180.0,113170.0,1.08518714]
[1761745269246,0.26708,113180.0,113170.0,1.09518713]
[1761745269457,0.26708,113180.0,113170.0,1.43518713]
[1761745269666,8.501e-05,113200.0,113190.0,0.17669405]
[1761745269865,0.00121953,113220.0,113210.0,0.17666283]
[1761745270091,0.00121953,113220.0,113210.0,0.34747184]
[1761745270520,0.00121953,113220.0,113210.0,0.38365412]
[1761745270735,0.00121953,113220.0,113210.0,0.34747184]
[1761745270948,0.00121953,113220.0,113210.0,1.0547924]
[1761745271405,0.00121953,113220.0,113210.0,0.34747184]
[1761745271611,0.00121953,113220.0,113210.0,1.0547924]
[1761745271831,0.00121953,113220.0,113210.0,0.34847184]
[1761745273111,0.00221953,113220.0,113210.0,0.34947184]
[1761745273531,0.00221953,113220.0,113210.0,0.35047184]
[1761745274020,0.00221953,113220.0,113210.0,1.09397468]
[1761745274646,0.00221953,113220.0,113210.0,0.38665412]
[1761745274855,0.00221953,113220.0,113210.0,1.09397468]
[1761745275667,0.00221953,113220.0,113210.0,0.38665412]
[1761745276097,0.00221953,113220.0,113210.0,0.35047184]
[1761745276921,0.00221953,113220.0,113210.0,1.43397468]
[1761745278854,0.00221953,113220.0,113210.0,1.09397468]
[1761745279964,0.00221953,113220.0,113210.0,1.43397468]
[1761745280199,0.2,113260.0,113250.0,0.17659765]
[1761745280200,0.17658484,113260.0,113250.0,0.17659765]
[1761745280442,0.00014506,113260.0,113250.0,0.23416765]
[1761745280656,0.00014506,113260.0,113250.0,1.07952722]
[1761745280875,0.00120461,113260.0,113250.0,1.07952722]
[1761745281309,0.00120461,113260.0,113250.0,0.37220666]
[1761745281789,0.17778945,113260.0,113250.0,0.05757]
[1761745282004,0.00120461,113260.0,113250.0,0.28239044]
[1761745282218,0.17778945,113260.0,113250.0,0.28239044]
[1761745282423,0.00120461,113260.0,113250.0,0.28239044]
[1761745282866,0.00120461,113260.0,113250.0,0.37220945]
[1761745283505,0.00520461,113260.0,113250.0,1.08053001]
[1761745283922,0.00520461,113260.0,113250.0,0.37320945]
[1761745284357,0.00520461,113260.0,113250.0,0.10679]
[1761745284562,0.18178945,113260.0,113250.0,0.10679]
[1761745284784,0.18178945,113260.0,113250.0,0.28339044]
[1761745284987,0.18178945,113260.0,113250.0,0.10679]
[1761745285439,0.18997486,113260.0,113250.0,0.28339044]
[1761745285866,0.01339002,113260.0,113250.0,0.28339044]
[1761745286313,0.20897085,113260.0,113250.0,0.05857]
[1761745286523,0.21127085,113260.0,113250.0,0.001]
[1761745286998,0.55127085,113260.0,113250.0,0.001]
[1761745287209,0.55357085,113260.0,113250.0,0.001]
[1761745287428,0.55127085,113260.0,113250.0,0.001]
[1761745287645,0.53227486,113260.0,113250.0,0.05665]
[1761745289340,0.52997486,113260.0,113250.0,0.05665]
[1761745289539,0.52997486,113260.0,113250.0,0.10222]
[1761745289770,0.18997486,113260.0,113250.0,0.10222]
[1761745289977,0.18997486,113260.0,113250.0,0.29648048]
[1761745290187,0.18997486,113260.0,113250.0,0.27882044]
[1761745290628,0.01339002,113260.0,113250.0,0.27882044]
[1761745291257,0.18997486,113260.0,113250.0,0.27882044]
[1761745291463,0.20897085,113260.0,113250.0,0.10222]
[1761745291915,0.20897085,113260.0,113250.0,0.27882044]
[1761745292131,0.03238601,113260.0,113250.0,0.27882044]
[1761745292348,0.18997486,113260.0,113250.0,0.27882044]
[1761745292795,0.01339002,113260.0,113250.0,0.27882044]
[1761745293025,0.01339002,113260.0,113250.0,1.07596001]
[1761745293288,0.01339002,113260.0,113250.0,0.36863945]
[1761745295182,0.01339002,113260.0,113250.0,1.07596001]
[1761745296561,0.01339002,113260.0,113250.0,1.11214229]
[1761745297037,0.01339002,113260.0,113250.0,0.36863945]
[1761745297253,0.20897124,113260.0,113250.0,0.27882044]
[1761745297885,0.01339002,113260.0,113250.0,0.27882044]
[1761745298103,0.18997486,113260.0,113250.0,0.27882044]
[1761745298346,0.18997486,113260.0,113220.0,0.07265]
[1761745298347,0.17661603,113240.0,113220.0,0.07265]
[1761745298566,0.17663163,113230.0,113220.0,0.07265]
[1761745298784,0.18481704,113230.0,113220.0,0.02642]
[1761745299001,0.24222744,113230.0,113220.0,0.02642]
[1761745299220,0.24222744,113230.0,113220.0,0.05808]
[1761745299443,0.23992744,113230.0,113220.0,0.10431]
[1761745299672,0.19838898,113230.0,113220.0,0.05808]
[1761745300320,0.20068898,113230.0,113220.0,0.02642]
[1761745300532,0.17664723,113220.0,113210.0,0.00037143]
[1761745300752,0.51894723,113220.0,113210.0,0.00037143]
[1761745300961,0.53791432,113220.0,113210.0,0.00037143]
[1761745301176,0.62773333,113220.0,113210.0,0.00037143]
[1761745301619,0.63003333,113220.0,113210.0,0.00037143]
[1761745301835,4.47033384,113220.0,113210.0,0.00137143]
[1761745302046,4.47831616,113220.0,113210.0,0.00137143]
[1761745302266,4.49689838,113220.0,113210.0,0.00137143]
[1761745302901,3.69745881,113220.0,113210.0,0.00137143]
[1761745303117,0.6708997,113220.0,113210.0,0.00137143]
[1761745303348,0.64420366,113220.0,113210.0,0.00037143]
[1761745303786,0.01996709,113220.0,113210.0,0.28099426]
[1761745304015,0.01996709,113220.0,113210.0,0.27899426]
[1761745304016,0.001,113220.0,113210.0,0.27899426]
[1761745304442,0.003,113220.0,113210.0,0.27999426]
[1761745304673,0.17664723,113220.0,113210.0,0.27899426]
[1761745304922,0.19559968,113230.0,113210.0,0.27899426]
[1761745305169,0.001,113220.0,113210.0,0.20310426]
[1761745305411,0.17764723,113220.0,113210.0,0.02644143]
[1761745305638,0.17764723,113220.0,113210.0,0.28099426]
[1761745305850,0.001,113220.0,113210.0,0.28099426]
[1761745306242,0.17764723,113220.0,113210.0,0.28099426]
[1761745306661,0.17664723,113220.0,113210.0,0.27899426]
[1761745307075,0.17864723,113220.0,113210.0,0.28599426]
[1761745307277,0.002,113220.0,113210.0,0.28599426]
[1761745308829,0.002,113220.0,113210.0,1.08313383]
[1761745309833,0.002,113220.0,113210.0,0.37581327]
[1761745310243,0.002,113220.0,113210.0,0.23976426]
[1761745310923,0.002,113220.0,113210.0,0.28599426]
[1761745311125,0.002,113220.0,113210.0,1.08313383]
[1761745312079,0.002,113220.0,113210.0,1.11931611]
[1761745313795,0.002,113220.0,113210.0,1.08313383]
[1761745314442,0.002,113220.0,113210.0,1.11931611]
[1761745314651,0.002,113220.0,113210.0,0.41199555]
[1761745314857,0.002,113220.0,113210.0,1.11931611]
[1761745315460,0.002,113220.0,113210.0,0.37581327]
[1761745323482,0.002,113220.0,113210.0,1.08313383]
[1761745324305,0.002,113220.0,113210.0,0.37581327]
[1761745325111,0.002,113220.0,113210.0,1.11931611]
[1761745325635,8.541e-05,113230.0,113220.0,0.55282951]
[1761745325843,0.00105955,113260.0,113250.0,0.17660044]
[1761745326186,0.00114495,113260.0,113250.0,0.23233044]
[1761745326394,0.00114495,113260.0,113250.0,0.27856044]
[1761745326807,0.00114495,113260.0,113250.0,0.985881]
[1761745327039,0.00114495,113260.0,113250.0,1.07570001]
[1761745327454,0.00114495,113260.0,113250.0,0.93903512]
[1761745327902,0.00314495,113260.0,113250.0,0.9832174]
[1761745328666,0.00114495,113260.0,113250.0,0.9752174]
[1761745329123,0.00314495,113260.0,113250.0,0.9832174]
[1761745329466,0.00314495,113260.0,113250.0,0.9752174]
[1761745329467,0.00114495,113260.0,113250.0,0.9752174]
[1761745329879,0.00114495,113260.0,113250.0,0.36837945]
[1761745330883,0.00114495,113260.0,113250.0,0.94003512]
[1761745331081,0.00114495,113260.0,113250.0,0.95003512]
[1761745331082,0.00314495,113260.0,113250.0,0.95003512]
[1761745331309,0.00114495,113260.0,113250.0,0.36937945]
[1761745331721,0.00314495,113260.0,113250.0,0.37837945]
[1761745332133,0.00314495,113260.0,113250.0,0.9852174]
[1761745333134,0.00314495,113260.0,113250.0,0.37837945]
[1761745333983,0.00314495,113260.0,113250.0,0.41456173]
[1761745334233,0.00314495,113260.0,113250.0,0.9852174]
[1761745336366,0.00314495,113260.0,113250.0,0.37837945]
[1761745337601,0.00314495,113260.0,113250.0,0.94903512]
[1761745337811,0.00314495,113260.0,113250.0,0.9852174]
[1761745341928,0.00314495,113260.0,113250.0,1.55587307]
[1761745342127,0.00314495,113260.0,113250.0,0.9852174]
[1761745342519,0.00314495,113260.0,113250.0,0.41456173]
[1761745342742,0.00314495,113260.0,113250.0,0.9852174]
[1761745344499,0.00314495,113260.0,113250.0,1.3252174]
[1761745344730,0.00314495,113260.0,113250.0,1.89587307]
[1761745345200,0.00314495,113260.0,113250.0,1.3252174]
[1761745345429,0.00314495,113260.0,113250.0,1.90587306]
[1761745345891,0.008,113280.0,113270.0,0.21275153]
[1761745346114,0.008,113280.0,113270.0,0.97148621]
[1761745346804,0.008,113280.0,113270.0,0.35596054]
[1761745346998,0.008,113280.0,113270.0,0.36464826]
[1761745347759,0.18455367,113280.0,113270.0,0.27482925]
[1761745347962,0.79539861,113280.0,113260.0,0.22144094]
[1761745348158,0.22474294,113280.0,113270.0,0.17656925]
[1761745348392,0.22574294,113280.0,113270.0,0.21351925]
[1761745348544,0.22574294,113280.0,113270.0,0.03695]
[1761745348748,0.22574294,113280.0,113270.0,0.20651925]
[1761745348749,0.22474294,113280.0,113270.0,0.20651925]
[1761745348952,0.18863367,113280.0,113270.0,0.20651925]
[1761745349200,0.18963367,113280.0,113270.0,0.20851925]
[1761745349457,0.1968672,113280.0,113260.0,0.22144094]
[1761745349830,0.1978672,113280.0,113270.0,0.17956925]
[1761745350002,0.28768621,113280.0,113270.0,0.003]
[1761745350601,0.08843055,113280.0,113270.0,0.003]
[1761745350811,0.17655367,113280.0,113270.0,0.003]
[1761745351040,0.17655367,113280.0,113270.0,0.03295]
[1761745351336,0.18536594,113290.0,113270.0,0.22995925]
[1761745351551,0.17797728,113280.0,113270.0,0.27482925]
[1761745351726,0.17797728,113280.0,113270.0,0.22995925]
[1761745351931,0.17697728,113280.0,113270.0,0.22995925]
[1761745352126,0.17697728,113280.0,113260.0,0.17657094]
[1761745352127,0.21000856,113280.0,113260.0,0.17657094]
[1761745352329,0.78124062,113280.0,113270.0,0.003]
[1761745352722,1.12124062,113280.0,113270.0,0.003]
[1761745352912,4.21105963,113280.0,113270.0,0.003]
[1761745353157,4.23004844,113280.0,113270.0,0.003]
[1761745353712,0.17658484,113260.0,113250.0,0.20949977]
[1761745353912,0.17658484,113260.0,113250.0,0.23944977]
[1761745354767,0.17660044,113250.0,113240.0,0.20068603]
[1761745354968,0.17660044,113250.0,113240.0,0.23072143]
[1761745355752,0.19560727,113260.0,113240.0,0.23072143]
[1761745355976,0.17758484,113260.0,113250.0,0.004]
[1761745356172,0.17758484,113260.0,113240.0,0.23072143]
[1761745356822,0.17660044,113250.0,113240.0,0.23072143]
[1761745356981,0.19560727,113260.0,113250.0,0.001]
[1761745357172,0.17658484,113260.0,113250.0,0.001]
[1761745357419,0.17658484,113260.0,113240.0,0.20077143]
[1761745357703,0.17658484,113260.0,113250.0,0.20648044]
[1761745357933,0.5446457,113270.0,113250.0,0.27494044]
[1761745358139,0.17658484,113260.0,113250.0,0.24506044]
[1761745358507,0.17658484,113260.0,113250.0,0.27494044]
[1761745359096,0.17758484,113260.0,113250.0,0.27594044]
[1761745359296,0.17758484,113260.0,113250.0,0.05327]
[1761745359790,0.17758484,113260.0,113250.0,0.22987044]
[1761745359987,0.17758484,113260.0,113250.0,0.27594044]
[1761745360209,0.001,113260.0,113250.0,0.27594044]
[1761745361230,0.17758484,113260.0,113250.0,0.27594044]
[1761745362075,0.001,113260.0,113250.0,0.27594044]
[1761745364967,0.17758484,113260.0,113250.0,0.05327]
[1761745365177,0.2139043,113260.0,113250.0,0.05327]
[1761745365391,0.2139043,113260.0,113250.0,0.22987044]
[1761745365602,0.2139043,113260.0,113250.0,0.17760044]
[1761745365811,0.2139043,113260.0,113250.0,0.20748044]
[1761745365812,0.17758484,113260.0,113250.0,0.20748044]
[1761745366898,0.17758484,113260.0,113250.0,0.001]
[1761745367550,0.17758484,113260.0,113250.0,0.20748044]
[1761745367770,0.17758484,113260.0,113250.0,0.001]
[1761745367954,0.23790548,113260.0,113250.0,0.001]
[1761745368165,0.32772449,113260.0,113250.0,0.001]
[1761745368408,4.44662809,113260.0,113250.0,0.001]
[1761745368621,4.46562905,113260.0,113250.0,0.001]
[1761745368839,4.52550431,113260.0,113250.0,0.001]
[1761745369085,4.54997442,113260.0,113250.0,0.001]
[1761745369906,0.17660044,113250.0,113240.0,8.54e-05]
[1761745370151,3.95887468,113250.0,113240.0,8.54e-05]
[1761745370355,3.95414302,113250.0,113240.0,8.54e-05]
[1761745370975,3.9541323,113250.0,113240.0,8.54e-05]
[1761745371569,3.9551323,113250.0,113240.0,8.54e-05]
[1761745372523,3.29665762,113250.0,113240.0,0.0010854]
[1761745372728,3.86731329,113250.0,113240.0,0.0010854]
[1761745373693,3.29665762,113250.0,113240.0,0.0010854]
[1761745373896,3.86731329,113250.0,113240.0,0.0010854]
[1761745375303,4.63796896,113250.0,113240.0,0.0010854]
[1761745375518,5.13211735,113250.0,113240.0,0.0010854]
[1761745375718,5.18025061,113250.0,113240.0,0.0010854]
[1761745375931,0.17663163,113230.0,113220.0,0.03164542]
[1761745376138,3.84534352,113230.0,113220.0,0.03164542]
[1761745376362,3.86434448,113230.0,113220.0,0.03164542]
[1761745376545,3.95416349,113230.0,113220.0,0.03164542]
[1761745377313,3.95816349,113230.0,113220.0,0.03264542]
[1761745377720,4.53036615,113230.0,113220.0,0.03264542]
[1761745377926,4.56654843,113230.0,113220.0,0.03264542]
[1761745378162,4.60469552,113230.0,113220.0,0.03264542]
[1761745378363,4.65282439,113230.0,113220.0,0.03264542]
[1761745378567,4.65382439,113230.0,113220.0,0.03264542]
[1761745378768,4.62567729,113230.0,113220.0,0.03264542]
[1761745379370,4.62566277,113230.0,113220.0,0.03264542]
[1761745379618,4.65222318,113230.0,113220.0,0.03264542]
[1761745380037,4.64222319,113230.0,113220.0,0.03264542]
[1761745380256,4.65222318,113230.0,113220.0,0.03264542]
[1761745381178,4.90718319,113230.0,113220.0,0.03264542]
[1761745381386,4.89348052,113230.0,113220.0,0.03264542]
[1761745381595,4.91715338,113230.0,113220.0,0.03264542]
[1761745382230,4.90071196,113230.0,113220.0,0.03264542]
[1761745382440,4.88347299,113230.0,113220.0,0.03264542]
[1761745383080,4.87497299,113230.0,113220.0,0.03264542]
[1761745383897,0.16082966,113180.0,113170.0,0.06846001]
[1761745384101,0.19458344,113180.0,113170.0,0.02247542]
[1761745384302,0.76523911,113180.0,113170.0,8.542e-05]
[1761745384500,1.19505812,113180.0,113170.0,8.542e-05]
[1761745384647,4.19505812,113180.0,113170.0,8.542e-05]
[1761745384849,4.19505812,113180.0,113170.0,0.00114575]
[1761745385439,4.46001812,113180.0,113170.0,0.00114575]
[1761745386139,4.51528521,113180.0,113170.0,0.00114575]
[1761745386358,4.51092811,113180.0,113170.0,0.00314575]
[1761745386580,4.51092811,113180.0,113170.0,1e-08]
[1761745386581,4.75711038,113180.0,113170.0,1e-08]
[1761745386794,4.75711038,113180.0,113140.0,0.004]
[1761745386795,3.51675651,113150.0,113140.0,0.004]
[1761745387013,3.60657552,113150.0,113140.0,0.00448388]
[1761745387228,3.6153234,113150.0,113140.0,0.00448388]
[1761745387454,3.6153234,113150.0,113140.0,0.00512038]
[1761745387891,3.34874788,113150.0,113140.0,0.21207252]
[1761745388108,0.52550439,113150.0,113140.0,0.08108038]
[1761745388327,0.52550439,113150.0,113140.0,0.00512038]
[1761745389223,4.23366622,113150.0,113140.0,0.00512038]
[1761745389435,4.32348523,113150.0,113140.0,0.00512038]
[1761745389651,4.41330424,113150.0,113140.0,0.00512038]
[1761745389865,4.41430424,113150.0,113140.0,0.00812038]
[1761745390265,3.70614241,113150.0,113140.0,0.00812038]
[1761745392049,4.61430424,113150.0,113140.0,0.00812038]
[1761745392339,4.93414676,113150.0,113140.0,0.00812038]
[1761745392543,5.15795758,113150.0,113140.0,0.00812038]
[1761745393182,5.15695758,113150.0,113140.0,0.00512038]
[1761745393366,5.15695758,113150.0,113140.0,0.00612038]
[1761745393605,5.16095758,113150.0,113140.0,0.00612038]
[1761745394023,5.16195758,113150.0,113140.0,0.00612038]
[1761745394268,4.25379575,113150.0,113140.0,0.00612038]
[1761745394473,4.93829239,113150.0,113140.0,0.00612038]
[1761745396464,4.96195758,113150.0,113140.0,0.00612038]
[1761745396686,4.93829239,113150.0,113140.0,0.00612038]
[1761745396909,5.03100239,113150.0,113140.0,0.00612038]
[1761745397124,4.93829239,113150.0,113140.0,0.00612038]
[1761745397326,4.96195758,113150.0,113140.0,0.00612038]
[1761745398116,4.9257753,113150.0,113140.0,0.00612038]
[1761745398342,4.90211011,113150.0,113140.0,0.00612038]
[1761745400073,3.56412927,113150.0,113140.0,0.21280252]
[1761745400277,3.5452834,113150.0,113140.0,0.21280252]
[1761745401114,0.27870788,113150.0,113140.0,0.21280252]
[1761745401423,0.44171651,113150.0,113140.0,0.25482252]
[1761745401626,0.44371651,113150.0,113140.0,0.25982252]
[1761745402045,0.44171651,113150.0,113140.0,0.21180252]
[1761745402448,0.44171651,113150.0,113140.0,0.03503038]
[1761745402700,0.50444481,113150.0,113140.0,0.21180252]
[1761745403243,0.44171651,113150.0,113140.0,0.21180252]
[1761745403455,0.44371651,113150.0,113140.0,0.21780252]
[1761745404460,0.26696,113150.0,113140.0,0.26082252]
[1761745404690,0.44371651,113150.0,113140.0,0.26082252]
[1761745404867,0.26696,113150.0,113140.0,0.26082252]
[1761745406556,0.26696,113150.0,113140.0,1.05880336]
[1761745406785,0.26696,113150.0,113140.0,1.09498564]
[1761745407453,0.22033,113150.0,113140.0,1.43498564]
[1761745407667,0.0201,113200.0,113190.0,0.17669405]
[1761745407871,0.00821802,113200.0,113190.0,0.22533405]
[1761745408086,0.21691413,113210.0,113190.0,0.26835405]
[1761745408303,0.20619851,113210.0,113200.0,0.20658844]
[1761745408495,0.00943556,113210.0,113200.0,0.24960844]
[1761745408709,0.18609839,113210.0,113200.0,0.24960844]
[1761745408913,0.18609839,113210.0,113200.0,0.24975352]
[1761745409318,0.21488839,113210.0,113200.0,0.03005508]
[1761745410138,0.25509839,113210.0,113200.0,0.00014508]
[1761745410333,4.11494913,113210.0,113200.0,0.00014508]
[1761745410549,4.45594913,113210.0,113200.0,0.00014508]
[1761745410989,4.45494913,113210.0,113200.0,0.00014508]
[1761745411395,4.45594913,113210.0,113200.0,0.00514508]
[1761745411614,4.65594913,113210.0,113200.0,0.00014508]
[1761745411824,4.70676142,113210.0,113200.0,0.00014508]
[1761745412027,4.75785669,113210.0,113200.0,0.00114508]
[1761745412948,4.7341915,113210.0,113200.0,0.00114508]
[1761745413152,4.66310015,113210.0,113200.0,0.00114508]
[1761745413373,4.66010015,113210.0,113200.0,0.00014508]
[1761745413802,4.66510015,113210.0,113200.0,0.00114508]
[1761745414235,4.66510015,113210.0,113200.0,1e-08]
[1761745414236,4.72942953,113210.0,113200.0,1e-08]
[1761745414439,5.56324682,113210.0,113200.0,1e-08]
[1761745414665,5.56153791,113210.0,113200.0,1e-08]
[1761745414904,3.51672528,113170.0,113160.0,0.00021213]
[1761745415172,4.39122765,113170.0,113160.0,0.00069601]